fUST/lending_fUST_20250923
["ID","MTS","AMOUNT","RATE_DAILY","PERIOD"]
[387182648,1758616238004,500.0,0.000137,2]
[387182651,1758616238016,-749.81413425,0.00019178,2]
[387182653,1758616238026,-1071.2194092,0.00019178,2]
[387182655,1758616238038,-5261.63741812,0.00019178,2]
[387182657,1758616238047,-3291.56376113,0.00019178,2]
[387182659,1758616238057,-480.0,0.00019178,2]
[387182662,1758616238065,-480.0,0.00019178,2]
[387182664,1758616238075,-486.5119387,0.00019178,2]
[387182666,1758616238085,-480.0,0.00019178,2]
[387182668,1758616238094,-482.5318543,0.00019178,2]
[387182670,1758616238104,-481.3297168,0.00019178,2]
[387182672,1758616238113,-485.44968466,0.00019178,2]
[387182674,1758616238122,-502.9907,0.00019178,2]
[387182676,1758616238131,-484.00080736,0.00019178,2]
[387182678,1758616238141,-480.0,0.00019178,2]
[387182680,1758616238150,-466.81610051,0.00019178,2]
[387182682,1758616238159,-133.69357976,0.00019178,2]
[387182693,1758616238261,-346.30642024,0.00019178,2]
[387182695,1758616238271,-79.65441456,0.00019178,2]
[387182715,1758616239819,-400.34558544,0.00019178,2]
[387182716,1758616239830,-480.0,0.00019178,2]
[387182717,1758616239839,-483.20154053,0.00019178,2]
[387182718,1758616239850,-483.34132093,0.00019178,2]
[387182719,1758616239860,-401.319715,0.00019178,2]
[387182720,1758616239869,-3553.7808994,0.00019178,2]
[387182721,1758616239879,-484.61040444,0.00019178,2]
[387182722,1758616239888,-480.0,0.00019178,2]
[387182723,1758616239899,-8043.2104185,0.00019178,2]
[387182724,1758616239908,-480.0,0.00019178,2]
[387182725,1758616239917,-480.0,0.00019178,2]
[387182726,1758616239927,-480.0,0.00019178,2]
[387182727,1758616239936,-480.0,0.00019178,2]
[387182728,1758616239945,-480.60876036,0.00019178,2]
[387182729,1758616239954,-480.0,0.00019178,2]
[387182730,1758616239964,-480.0,0.00019178,2]
[387182731,1758616239973,-480.0,0.00019178,2]
[387182732,1758616239983,-480.0,0.00019178,2]
[387182733,1758616239992,-492.2396621,0.00019178,2]
[387182734,1758616240002,-480.0,0.00019178,2]
[387182735,1758616240012,-481.75427207,0.00019178,2]
[387182736,1758616240021,-480.0,0.00019178,2]
[387182737,1758616240031,-480.0,0.00019178,2]
[387182738,1758616240040,-481.9833776,0.00019178,2]
[387182739,1758616240050,-480.0,0.00019178,2]
[387182740,1758616240059,-293.35396727,0.00019178,2]
[387182741,1758616240069,-304.27857474,0.00019178,2]
[387182742,1758616240078,-151.0,0.00019178,2]
[387182743,1758616240087,-154.550711,0.00019178,2]
[387182744,1758616240097,-480.0,0.00019178,2]
[387182745,1758616240106,-481.76470343,0.00019178,2]
[387182746,1758616240116,-486.46142387,0.00019178,2]
[387182747,1758616240126,-485.30799326,0.00019178,2]
[387182748,1758616240135,-339.31825797,0.00019178,2]
[387182749,1758616240145,-548.17949144,0.00019178,2]
[387182750,1758616240154,-480.0,0.00019178,2]
[387182751,1758616240164,-480.0,0.00019178,2]
[387182752,1758616240174,-480.0,0.00019178,2]
[387182753,1758616240183,-480.0,0.00019178,2]
[387182754,1758616240192,-480.0,0.00019178,2]
[387182755,1758616240201,-480.0,0.00019178,2]
[387182756,1758616240211,-484.85768044,0.00019178,2]
[387182757,1758616240220,-480.0,0.00019178,2]
[387182758,1758616240229,-480.0,0.00019178,2]
[387182759,1758616240239,-480.0,0.00019178,2]
[387182760,1758616240248,-522.8999213,0.00019178,2]
[387182761,1758616240258,-481.13486468,0.00019178,2]
[387182762,1758616240267,-480.0,0.00019178,2]
[387182763,1758616240277,-480.0,0.00019178,2]
[387182764,1758616240289,-151.0,0.00019178,2]
[387182765,1758616240298,-480.0,0.00019178,2]
[387182766,1758616240308,-480.0,0.00019178,2]
[387182767,1758616240318,-151.0,0.00019178,2]
[387182768,1758616240328,-243.11087404,0.00019178,2]
[387182769,1758616240338,-151.0,0.00019178,2]
[387182770,1758616240348,-151.0,0.00019178,2]
[387182771,1758616240357,-151.387262,0.00019178,2]
[387182772,1758616240366,-151.9268004,0.00019178,2]
[387182773,1758616240376,-503.94936699,0.00019178,2]
[387182774,1758616240385,-151.0,0.00019178,2]
[387182775,1758616240395,-151.0,0.00019178,2]
[387182776,1758616240404,-481.38890249,0.00019178,2]
[387182777,1758616240413,-151.0,0.00019178,2]
[387182778,1758616240422,-151.0,0.00019178,2]
[387182779,1758616240433,-483.56483832,0.00019178,2]
[387182780,1758616240454,-480.0,0.00019178,2]
[387182781,1758616240475,-151.0,0.00019178,2]
[387182782,1758616240492,-160.424244,0.00019178,2]
[387182783,1758616240502,-1146.0111417,0.00019178,2]
[387182784,1758616240511,-480.0,0.00019178,2]
[387182785,1758616240520,-480.0,0.00019178,2]
[387182786,1758616240531,-480.0,0.00019178,2]
[387182787,1758616240541,-480.0,0.00019178,2]
[387182788,1758616240550,-480.0,0.00019178,2]
[387182789,1758616240560,-480.0,0.00019178,2]
[387182790,1758616240569,-428.61746293,0.00019178,2]
[387182791,1758616240579,-480.0,0.00019178,2]
[387182792,1758616240588,-480.0,0.00019178,2]
[387182793,1758616240598,-480.0,0.00019178,2]
[387182794,1758616240608,-480.0,0.00019178,2]
[387182795,1758616240617,-151.0,0.00019178,2]
[387182796,1758616240627,-151.0,0.00019178,2]
[387182797,1758616240637,-480.0,0.00019178,2]
[387182798,1758616240647,-480.0,0.00019178,2]
[387182799,1758616240656,-480.0,0.00019178,2]
[387182800,1758616240665,-480.0,0.00019178,2]
[387182801,1758616240674,-480.0,0.00019178,2]
[387182802,1758616240684,-480.0,0.00019178,2]
[387182803,1758616240694,-480.0,0.00019178,2]
[387182804,1758616240703,-480.0,0.00019178,2]
[387182805,1758616240713,-151.0,0.00019178,2]
[387182806,1758616240723,-151.0,0.00019178,2]
[387182807,1758616240733,-154.190545,0.00019178,2]
[387182808,1758616240743,-480.0,0.00019178,2]
[387182809,1758616240753,-480.0,0.00019178,2]
[387182810,1758616240762,-480.0,0.00019178,2]
[387182811,1758616240771,-151.0,0.00019178,2]
[387182812,1758616240782,-151.0,0.00019178,2]
[387182813,1758616240792,-480.0,0.00019178,2]
[387182814,1758616240801,-151.0,0.00019178,2]
[387182815,1758616240811,-151.0,0.00019178,2]
[387182816,1758616240820,-156.54227,0.00019178,2]
[387182817,1758616240830,-480.0,0.00019178,2]
[387182818,1758616240839,-484.08250498,0.00019178,2]
[387182819,1758616240848,-480.0,0.00019178,2]
[387182820,1758616240858,-151.0,0.00019178,2]
[387182821,1758616240867,-151.0,0.00019178,2]
[387182822,1758616240877,-151.0,0.00019178,2]
[387182823,1758616240887,-153.069319,0.00019178,2]
[387182824,1758616240897,-480.0,0.00019178,2]
[387182825,1758616240907,-480.0,0.00019178,2]
[387182826,1758616240916,-151.0,0.00019178,2]
[387182827,1758616240925,-151.0,0.00019178,2]
[387182828,1758616240935,-151.0,0.00019178,2]
[387182829,1758616240944,-489.87447491,0.00019178,2]
[387182830,1758616240954,-480.0,0.00019178,2]
[387182831,1758616240963,-151.0,0.00019178,2]
[387182832,1758616241050,-151.0,0.00019178,2]
[387182833,1758616241059,-151.0,0.00019178,2]
[387182834,1758616241069,-151.0,0.00019178,2]
[387182835,1758616241078,-480.0,0.00019178,2]
[387182836,1758616241088,-151.0,0.00019178,2]
[387182837,1758616241097,-151.962832,0.00019178,2]
[387182838,1758616241107,-483.92009188,0.00019178,2]
[387182839,1758616241116,-482.90695908,0.00019178,2]
[387182840,1758616241126,-480.0,0.00019178,2]
[387182841,1758616241136,-480.0,0.00019178,2]
[387182842,1758616241145,-483.41996894,0.00019178,2]
[387182843,1758616241154,-405.67891948,0.00019178,2]
[387182844,1758616241164,-151.0,0.00019178,2]
[387182845,1758616241173,-480.0,0.00019178,2]
[387182846,1758616241182,-151.0,0.00019178,2]
[387182847,1758616241192,-480.0,0.00019178,2]
[387182848,1758616241201,-151.0,0.00019178,2]
[387182849,1758616241211,-151.0,0.00019178,2]
[387182850,1758616241220,-407.59843057,0.00019178,2]
[387182851,1758616241230,-151.0,0.00019178,2]
[387182852,1758616241239,-151.0,0.00019178,2]
[387182853,1758616241249,-481.70331709,0.00019178,2]
[387182854,1758616241258,-489.41638722,0.00019178,2]
[387182855,1758616241268,-483.83717369,0.00019178,2]
[387182856,1758616241277,-151.0,0.00019178,2]
[387182857,1758616241288,-152.268049,0.00019178,2]
[387182858,1758616241297,-480.0,0.00019178,2]
[387182859,1758616241307,-151.0,0.00019178,2]
[387182860,1758616241316,-151.0,0.00019178,2]
[387182861,1758616241326,-480.0,0.00019178,2]
[387182862,1758616241335,-153.066417,0.00019178,2]
[387182863,1758616241344,-485.15306181,0.00019178,2]
[387182864,1758616241354,-480.0,0.00019178,2]
[387182865,1758616241364,-483.22635894,0.00019178,2]
[387182866,1758616241373,-481.99057623,0.00019178,2]
[387182867,1758616241383,-480.0,0.00019178,2]
[387182868,1758616241392,-480.0,0.00019178,2]
[387182869,1758616241401,-480.0,0.00019178,2]
[387182870,1758616241411,-480.0,0.00019178,2]
[387182871,1758616241421,-480.0,0.00019178,2]
[387182872,1758616241430,-480.0,0.00019178,2]
[387182873,1758616241441,-481.73418816,0.00019178,2]
[387182874,1758616241462,-480.0,0.00019178,2]
[387182875,1758616241480,-480.0,0.00019178,2]
[387182876,1758616241490,-480.0,0.00019178,2]
[387182877,1758616241499,-480.0,0.00019178,2]
[387182878,1758616241508,-480.0,0.00019178,2]
[387182879,1758616241518,-151.0,0.00019178,2]
[387182880,1758616241527,-480.0,0.00019178,2]
[387182881,1758616241538,-152.594649,0.00019178,2]
[387182882,1758616241548,-157.46934482,0.00019178,2]
[387182883,1758616241557,-208.732237,0.00019178,2]
[387182884,1758616241567,-268.19630865,0.00019178,2]
[387182885,1758616241576,-208.732237,0.00019178,2]
[387182886,1758616241586,-208.732237,0.00019178,2]
[387182887,1758616241596,-484.34777928,0.00019178,2]
[387182888,1758616241606,-208.732237,0.00019178,2]
[387182889,1758616241616,-208.732237,0.00019178,2]
[387182890,1758616241626,-208.732237,0.00019178,2]
[387182891,1758616241635,-480.0,0.00019178,2]
[387182892,1758616241645,-208.732237,0.00019178,2]
[387182893,1758616241654,-208.732237,0.00019178,2]
[387182894,1758616241664,-480.0,0.00019178,2]
[387182895,1758616241673,-151.0,0.00019178,2]
[387182896,1758616241682,-480.0,0.00019178,2]
[387182897,1758616241692,-151.0,0.00019178,2]
[387182898,1758616241701,-480.0,0.00019178,2]
[387182899,1758616241711,-537.57,0.00019178,2]
[387182900,1758616241720,-481.31711894,0.00019178,2]
[387182901,1758616241729,-480.0,0.00019178,2]
[387182902,1758616241740,-480.0,0.00019178,2]
[387182903,1758616241756,-480.0,0.00019178,2]
[387182904,1758616241773,-151.0,0.00019178,2]
[387182905,1758616241785,-151.0,0.00019178,2]
[387182906,1758616241801,-483.50126493,0.00019178,2]
[387182907,1758616241817,-252.703171,0.00019178,2]
[387182908,1758616241833,-151.0,0.00019178,2]
[387182909,1758616241848,-154.555042,0.00019178,2]
[387182910,1758616241863,-480.0,0.00019178,2]
[387182911,1758616241877,-480.0,0.00019178,2]
[387182912,1758616241891,-480.0,0.00019178,2]
[387182913,1758616241905,-480.0,0.00019178,2]
[387182914,1758616241919,-480.0,0.00019178,2]
[387182915,1758616241932,-480.0,0.00019178,2]
[387182916,1758616241944,-187.026742,0.00019178,2]
[387182917,1758616241958,-187.026742,0.00019178,2]
[387182918,1758616241971,-151.0,0.00019178,2]
[387182919,1758616241986,-151.0,0.00019178,2]
[387182920,1758616242001,-187.026742,0.00019178,2]
[387182921,1758616242017,-187.026742,0.00019178,2]
[387182922,1758616242029,-151.0,0.00019178,2]
[387182923,1758616242041,-151.0,0.00019178,2]
[387182924,1758616242055,-151.0,0.00019178,2]
[387182925,1758616242070,-187.026742,0.00019178,2]
[387182926,1758616242083,-151.0,0.00019178,2]
[387182927,1758616242095,-187.026742,0.00019178,2]
[387182928,1758616242110,-480.0,0.00019178,2]
[387182929,1758616242124,-151.0,0.00019178,2]
[387182930,1758616242135,-485.36505383,0.00019178,2]
[387182931,1758616242148,-151.0,0.00019178,2]
[387182932,1758616242160,-151.0,0.00019178,2]
[387182933,1758616242172,-187.026742,0.00019178,2]
[387182934,1758616242185,-151.0,0.00019178,2]
[387182935,1758616242199,-187.026742,0.00019178,2]
[387182936,1758616242212,-480.0,0.00019178,2]
[387182937,1758616242225,-480.0,0.00019178,2]
[387182938,1758616242238,-480.0,0.00019178,2]
[387182939,1758616242251,-481.83439302,0.00019178,2]
[387182940,1758616242264,-480.0,0.00019178,2]
[387182941,1758616242276,-458.0559858,0.00019178,2]
[387182942,1758616242289,-481.60023008,0.00019178,2]
[387182944,1758616242302,-480.0,0.00019178,2]
[387182945,1758616242314,-480.0,0.00019178,2]
[387182946,1758616242326,-480.0,0.00019178,2]
[387182947,1758616242338,-484.97697786,0.00019178,2]
[387182948,1758616242350,-480.0,0.00019178,2]
[387182949,1758616242362,-480.0,0.00019178,2]
[387182950,1758616242374,-151.0,0.00019178,2]
[387182951,1758616242386,-151.0,0.00019178,2]
[387182952,1758616242398,-480.0,0.00019178,2]
[387182953,1758616242410,-480.0,0.00019178,2]
[387182954,1758616242423,-480.0,0.00019178,2]
[387182956,1758616242435,-480.0,0.00019178,2]
[387182958,1758616242449,-480.0,0.00019178,2]
[387182960,1758616242462,-480.0,0.00019178,2]
[387182961,1758616242475,-480.0,0.00019178,2]
[387182962,1758616242487,-288.48115772,0.00019178,2]
[387182963,1758616242521,-94.77253831,0.00019178,2]
[387182964,1758616242534,-488.6797101,0.00019178,2]
[387182965,1758616242546,-480.0,0.00019178,2]
[387182966,1758616242559,-499.5856215,0.00019178,2]
[387182967,1758616242570,-480.0,0.00019178,2]
[387182968,1758616242583,-480.0,0.00019178,2]
[387182969,1758616242595,-480.0,0.00019178,2]
[387182970,1758616242607,-480.0,0.00019178,2]
[387182971,1758616242619,-151.0,0.00019178,2]
[387182972,1758616242632,-151.0,0.00019178,2]
[387182973,1758616242645,-151.0,0.00019178,2]
[387182974,1758616242654,-480.0,0.00019178,2]
[387182975,1758616242664,-151.0,0.00019178,2]
[387182978,1758616242772,-151.0,0.00019178,2]
[387182979,1758616242819,-151.0,0.00019178,2]
[387182980,1758616242829,-223.338358,0.00019178,2]
[387182981,1758616242839,-151.0,0.00019178,2]
[387182982,1758616242848,-155.377166,0.00019178,2]
[387182983,1758616242858,-152.11303,0.00019178,2]
[387182984,1758616242867,-477.43706892,0.00019178,2]
[387182985,1758616242877,-151.0,0.00019178,2]
[387182986,1758616242886,-151.0,0.00019178,2]
[387182987,1758616242896,-480.0,0.00019178,2]
[387182988,1758616242905,-480.0,0.00019178,2]
[387182989,1758616242915,-151.0,0.00019178,2]
[387182990,1758616242925,-151.0,0.00019178,2]
[387182991,1758616242935,-484.27770486,0.00019178,2]
[387182992,1758616242944,-510.13,0.00019178,2]
[387182993,1758616242953,-211.9002209,0.00019178,2]
[387182997,1758616245373,-268.0997791,0.00019178,2]
[387182998,1758616245382,-175.925784,0.00019178,2]
[387182999,1758616245392,-163.57365029,0.00019178,2]
[387183003,1758616246013,-490.15,0.00019168,3]
[387183004,1758616246023,-12.35213371,0.00019178,2]
[387183005,1758616246032,-175.925784,0.00019178,2]
[387183006,1758616246042,-483.07541405,0.00019178,2]
[387183007,1758616246052,-480.0,0.00019178,2]
[387183008,1758616246062,-175.925784,0.00019178,2]
[387183010,1758616246071,-175.925784,0.00019178,2]
[387183011,1758616246081,-333.67996156,0.00019178,2]
[387183014,1758616246596,-146.32003844,0.00019178,2]
[387183015,1758616246606,-175.925784,0.00019178,2]
[387183016,1758616246615,-480.0,0.00019178,2]
[387183017,1758616246624,-179.14433754,0.00019178,2]
[387183018,1758616246636,-300.85566246,0.00019178,2]
[387183019,1758616246646,-175.925784,0.00019178,2]
[387183020,1758616246656,-23.21855354,0.00019178,2]
[387183021,1758616252871,200.0,0.00018819,2]
[387183023,1758616450958,302.69714875,0.000189,2]
[387183024,1758616518388,1134.062533,0.00018178,2]
[387183025,1758616571586,1000.0,0.00018153,2]
[387183026,1758616652313,666.0,0.00018158,2]
[387183027,1758616679389,345.835468,0.00018133,2]
[387183028,1758616683734,582.69264144,0.00018506,2]
[387183029,1758616685555,164.26,0.00015485,2]
[387183030,1758616685990,164.26,0.00015485,2]
[387183031,1758616686140,164.25,0.00015485,2]
[387183032,1758616803664,400.0,0.0002739,120]
[387183065,1758617432126,-536.28218171,0.00019067,2]
[387183067,1758617432137,-246.51019588,0.00019068,2]
[387183070,1758617432146,-246.51019587,0.00019073,2]
[387183072,1758617432156,-300.0,0.00019077,2]
[387183074,1758617432166,-300.0,0.00019077,2]
[387183076,1758617432176,-310.85195296,0.00019078,2]
[387183078,1758617432186,-2120.96905543,0.00019078,2]
[387183080,1758617432197,-333.81793917,0.00019078,2]
[387183082,1758617432206,-246.51019587,0.00019078,2]
[387183084,1758617432215,-582.00790027,0.00019078,2]
[387183086,1758617432226,-6118.00547707,0.00019078,2]
[387183088,1758617432238,-11066.38130369,0.00019078,2]
[387183090,1758617432247,-500.0,0.000191,2]
[387183092,1758617432256,-365.47454789,0.00019102,2]
[387183094,1758617432266,-1000.0,0.00019166,2]
[387183096,1758617432275,-514.9642712,0.00019166,2]
[387183098,1758617432284,-250.0,0.00019166,2]
[387183100,1758617432294,-250.0,0.00019166,2]
[387183102,1758617432304,-200.0,0.00019166,2]
[387183104,1758617432313,-250.0,0.00019166,2]
[387183106,1758617432323,-200.0,0.00019166,2]
[387183108,1758617432333,-151.0,0.00019166,2]
[387183110,1758617432342,-250.0,0.00019166,2]
[387183112,1758617432352,-200.0,0.00019166,2]
[387183114,1758617432361,-151.0,0.00019166,2]
[387183116,1758617432370,-250.0,0.00019166,2]
[387183118,1758617432380,-200.0,0.00019166,2]
[387183120,1758617432390,-151.0,0.00019166,2]
[387183122,1758617432399,-200.0,0.00019166,2]
[387183124,1758617432409,-151.0,0.00019166,2]
[387183126,1758617432418,-250.0,0.00019166,2]
[387183128,1758617432427,-350.0,0.00019166,2]
[387183130,1758617432437,-125.25951711,0.00019166,2]
[387183186,1758617437952,-74.74048289,0.00019166,2]
[387183188,1758617437962,-350.0,0.00019166,2]
[387183190,1758617437971,-151.76959841,0.00019166,2]
[387183191,1758617437981,-200.0,0.00019166,2]
[387183193,1758617437991,-250.0,0.00019166,2]
[387183194,1758617438000,-350.0,0.00019166,2]
[387183196,1758617438010,-200.0,0.00019166,2]
[387183197,1758617438021,-151.0,0.00019166,2]
[387183198,1758617438030,-181.08010149,0.00019166,2]
[387183199,1758617438039,-250.0,0.00019166,2]
[387183200,1758617438049,-200.0,0.00019166,2]
[387183201,1758617438058,-309.6806092,0.00019166,2]
[387183202,1758617438079,-40.3193908,0.00019166,2]
[387183203,1758617438088,-151.0,0.00019166,2]
[387183204,1758617438098,-250.0,0.00019166,2]
[387183205,1758617438107,-163.0,0.00019166,2]
[387183206,1758617438116,-350.0,0.00019166,2]
[387183207,1758617438125,-250.0,0.00019166,2]
[387183208,1758617438135,-151.0,0.00019166,2]
[387183209,1758617438144,-350.0,0.00019166,2]
[387183210,1758617438154,-151.0,0.00019166,2]
[387183211,1758617438163,-250.0,0.00019166,2]
[387183212,1758617438173,-151.0,0.00019166,2]
[387183213,1758617438183,-250.0,0.00019166,2]
[387183214,1758617438193,-151.0,0.00019166,2]
[387183215,1758617438203,-250.0,0.00019166,2]
[387183216,1758617438212,-151.0,0.00019166,2]
[387183217,1758617438221,-374.92279364,0.00019166,2]
[387183218,1758617438230,-292.34349528,0.00019166,2]
[387183219,1758617438240,-21653.37856965,0.00019167,2]
[387183220,1758617438250,-816.86,0.00019168,3]
[387183221,1758617438259,-272.29,0.00019168,3]
[387183222,1758617438269,-501.7564302,0.00019173,2]
[387183223,1758617438279,-500.0,0.00019173,2]
[387183224,1758617438289,-500.0,0.00019173,2]
[387183225,1758617438298,-500.0,0.00019173,2]
[387183226,1758617438308,-293.93411894,0.00019173,2]
[387183227,1758617438318,-500.0,0.00019173,2]
[387183228,1758617438327,-500.0,0.00019173,2]
[387183229,1758617438337,-500.0,0.00019173,2]
[387183230,1758617438346,-500.0,0.00019173,2]
[387183231,1758617438356,-500.0,0.00019173,2]
[387183232,1758617438366,-500.0,0.00019173,2]
[387183233,1758617438376,-331.90388738,0.00019173,2]
[387183234,1758617438385,-500.0,0.00019173,2]
[387183235,1758617438394,-500.0,0.00019173,2]
[387183236,1758617438404,-500.0,0.00019173,2]
[387183237,1758617438414,-500.0,0.00019173,2]
[387183238,1758617438423,-500.0,0.00019173,2]
[387183239,1758617438432,-500.0,0.00019173,2]
[387183240,1758617438442,-500.0,0.00019173,2]
[387183241,1758617438451,-500.0,0.00019173,2]
[387183242,1758617438461,-500.0,0.00019173,2]
[387183243,1758617438471,-500.0,0.00019173,2]
[387183244,1758617438480,-500.0,0.00019173,2]
[387183245,1758617438490,-500.0,0.00019173,2]
[387183246,1758617438500,-500.0,0.00019173,2]
[387183247,1758617438510,-500.0,0.00019173,2]
[387183248,1758617438519,-500.0,0.00019173,2]
[387183249,1758617438530,-500.0,0.00019173,2]
[387183250,1758617438540,-500.0,0.00019173,2]
[387183251,1758617438549,-500.0,0.00019173,2]
[387183252,1758617438559,-500.0,0.00019173,2]
[387183253,1758617438568,-1761.78852216,0.00019177,2]
[387183254,1758617438581,-7330.17714334,0.00019177,2]
[387183264,1758617440822,153.0,8e-07,2]
[387183265,1758617441981,153.0,8e-07,2]
[387183267,1758617442482,-215.67674648,0.00018366,2]
[387183280,1758617443106,153.0,8e-07,2]
[387183330,1758617446060,-351.35451952,0.00018366,2]
[387183332,1758617446070,-3510.30783097,0.00019078,2]
[387183628,1758617710572,-1000.0,0.00018174,2]
[387183629,1758617710608,-500.0,0.000182,2]
[387183630,1758617710638,-469.24690904,0.00018973,2]
[387183631,1758617710809,-233.0,0.00018988,2]
[387183632,1758617710838,-300.0,0.00018988,2]
[387183633,1758617710870,-500.0,0.00018989,2]
[387183634,1758617710901,-500.0,0.00018989,2]
[387183635,1758617710938,-500.0,0.00018989,2]
[387183636,1758617710968,-500.0,0.00018989,2]
[387183637,1758617710998,-495.51618192,0.00018989,2]
[387183638,1758617711090,-4.48381808,0.00018989,2]
[387183639,1758617711118,-155.93943511,0.00018989,2]
[387183640,1758617711145,-334.57833819,0.00018989,2]
[387183641,1758617757414,666.0,0.00018095,2]
[387183642,1758617762896,171.0,0.00018989,2]
[387183643,1758617769583,222.99396289,0.00018989,2]
[387183644,1758617791078,276.668374,0.00018095,2]
[387183645,1758617797624,-204.31929734,0.0001899,2]
[387183646,1758617800937,-152.0,0.0001899,2]
[387183647,1758617803711,-244.36573667,0.0001899,2]
[387183648,1758617808689,-177.26966231,0.0001899,2]
[387183649,1758617812691,-177.8110459,0.0001899,2]
[387183650,1758617814212,-233.78652718,0.0001899,2]
[387183651,1758617816487,-167.09315796,0.0001899,2]
[387183652,1758617819194,-263.39481161,0.0001899,2]
[387183653,1758617823075,178.0,0.00018989,2]
[387183654,1758617824588,-267.1962302,0.0001899,2]
[387183655,1758617827322,-192.20953861,0.0001899,2]
[387183656,1758617830653,-431.57659154,0.0001899,2]
[387183657,1758617833329,-180.31810537,0.0001899,2]
[387183658,1758617836530,-201.76984897,0.0001899,2]
[387183659,1758617838818,-197.26418929,0.0001899,2]
[387183660,1758617839827,369.0,0.00018989,2]
[387183661,1758617841530,-158.85816134,0.0001899,2]
[387183662,1758617844320,-284.15601986,0.0001899,2]
[387183663,1758617850485,-426.86045003,0.0001899,2]
[387183664,1758617856578,-285.13344789,0.0001899,2]
[387183665,1758617857089,410.59104541,0.00018973,2]
[387183666,1758617859356,-257.45944923,0.0001899,2]
[387183667,1758617861513,-235.11309762,0.0001899,2]
[387183668,1758617863785,-179.62081847,0.0001899,2]
[387183669,1758617865909,334.99688066,0.00018978,2]
[387183670,1758617867389,-353.79433954,0.0001899,2]
[387183671,1758617870496,-355.6599688,0.0001899,2]
[387183673,1758618343435,283.515633,0.00017986,2]
[387183674,1758618411620,-330.12428,0.0001842,2]
[387183675,1758618411647,-325.71221336,0.000185,2]
[387183676,1758618411674,-184.55344486,0.00018502,2]
[387183677,1758618411701,-654.34239557,0.000189,2]
[387183678,1758618411727,-267.99750456,0.00018974,2]
[387183679,1758618411754,-300.0,0.00018988,2]
[387183680,1758618421525,-290.8918336,0.00018988,2]
[387183681,1758618424888,-419.93457446,0.000185,2]
[387183682,1758618428610,-80.06542554,0.000185,2]
[387183683,1758618439754,1200.0,0.00018987,2]
[387183684,1758618446959,500.0,0.00018,2]
[387183685,1758618452423,-339.54014747,0.00018988,2]
[387183686,1758618454711,-152.0,0.00018988,2]
[387183687,1758618457832,-253.84824709,0.00018988,2]
[387183688,1758618459520,300.0,0.00019367,20]
[387183689,1758618460070,-203.06865084,0.00018988,2]
[387183690,1758618460805,300.0,0.00019367,20]
[387183691,1758618462387,-187.87785842,0.00018988,2]
[387183692,1758618464103,-193.99612365,0.00018988,2]
[387183693,1758618469093,-423.16203841,0.00018988,2]
[387183694,1758618472505,-160.0,0.00018988,2]
[387183695,1758618474682,-156.41720064,0.00018988,2]
[387183696,1758618477339,-167.97620612,0.00018988,2]
[387183697,1758618478948,-425.57001952,0.00018988,2]
[387183698,1758618484301,162.11,0.00015485,2]
[387183699,1758618484792,162.11,0.00015485,2]
[387183700,1758618484867,-302.28759525,0.00018988,2]
[387183701,1758618485097,162.08,0.00015485,2]
[387183702,1758618487579,-300.35810533,0.00018988,2]
[387183703,1758618492581,-164.86669082,0.00018988,2]